fUST/lending_fUST_20250201
["ID","MTS","AMOUNT","RATE_DAILY","PERIOD"]
[351197471,1738409437092,-179.0,0.00017769,2]
[351197472,1738409437101,-179.0,0.00017769,2]
[351197473,1738409437111,-179.0,0.00017769,2]
[351197474,1738409437120,-179.0,0.00017769,2]
[351197475,1738409437129,-500.0,0.00017792,2]
[351197476,1738409437138,-783.32,0.00017792,2]
[351197477,1738409437148,-326.421,0.00017808,2]
[351197478,1738409437157,-500.0,0.00017808,2]
[351197479,1738409437166,-678.18,0.00017808,2]
[351197480,1738409437175,-500.0,0.00017808,2]
[351197481,1738409437185,-969.44,0.00017808,2]
[351197482,1738409437195,-296.26405114,0.000179,2]
[351197483,1738409437204,-785.3539732,0.00017927,2]
[351197484,1738409437213,-500.0,0.00017945,2]
[351197485,1738409437223,-678.18,0.00017945,2]
[351197486,1738409437232,-500.0,0.00017945,2]
[351197487,1738409437243,-969.44,0.00017945,2]
[351197488,1738409437254,-500.0,0.00017999,2]
[351197489,1738409437264,-783.32,0.00017999,2]
[351197490,1738409437276,-1693.79,0.00018,2]
[351197491,1738409437286,-296.26405088,0.00018072,2]
[351197492,1738409437295,-500.0,0.00018082,2]
[351197493,1738409437306,-678.18,0.00018082,2]
[351197494,1738409437316,-500.0,0.00018082,2]
[351197495,1738409437325,-969.44,0.00018082,2]
[351197496,1738409437336,-500.0,0.00018219,2]
[351197497,1738409437345,-678.18,0.00018219,2]
[351197498,1738409437356,-500.0,0.00018219,2]
[351197499,1738409437366,-969.44,0.00018219,2]
[351197500,1738409437376,-296.26405088,0.00018245,2]
[351197501,1738409437385,-10716.75359798,0.00018266,2]
[351197502,1738409437395,-587.0,0.00018267,2]
[351197503,1738409437405,-306.0,0.0001827,2]
[351197504,1738409437414,-500.0,0.00018356,2]
[351197505,1738409437423,-678.18,0.00018356,2]
[351197506,1738409437432,-500.0,0.00018356,2]
[351197507,1738409437442,-969.44,0.00018356,2]
[351197508,1738409437452,-152.0,0.00018376,2]
[351197509,1738409437461,-37027.60958867,0.00018386,2]
[351197510,1738409437471,-296.26405088,0.00018417,2]
[351197511,1738409437480,-161.317887,0.00018424,20]
[351197512,1738409437489,-447.84,0.00018463,2]
[351197513,1738409437498,-783.32,0.00018463,2]
[351197514,1738409437508,-152.0,0.00018464,2]
[351197515,1738409437518,-152.0,0.00018464,2]
[351197516,1738409437527,-152.0,0.00018464,2]
[351197517,1738409437538,-152.0,0.00018464,2]
[351197518,1738409437547,-152.0,0.00018464,2]
[351197519,1738409437557,-152.0,0.00018464,2]
[351197520,1738409437566,-152.0,0.00018464,2]
[351197521,1738409437575,-152.0,0.00018464,2]
[351197522,1738409437585,-152.0,0.00018464,2]
[351197523,1738409437594,-152.0,0.00018464,2]
[351197524,1738409437603,-152.0,0.00018464,2]
[351197525,1738409437612,-152.0,0.00018464,2]
[351197526,1738409437622,-152.0,0.00018464,2]
[351197527,1738409437631,-152.0,0.00018464,2]
[351197529,1738409437640,-152.0,0.00018464,2]
[351197530,1738409437650,-152.0,0.00018464,2]
[351197532,1738409437659,-152.0,0.00018464,2]
[351197535,1738409437668,-249.0,0.00018464,2]
[351197536,1738409437678,-153.0,0.00018464,2]
[351197538,1738409437687,-153.0,0.00018464,2]
[351197541,1738409437695,-153.0,0.00018464,2]
[351197544,1738409437705,-153.0,0.00018464,2]
[351197545,1738409437714,-153.0,0.00018464,2]
[351197547,1738409437723,-153.0,0.00018464,2]
[351197548,1738409437732,-153.0,0.00018464,2]
[351197550,1738409437742,-153.0,0.00018464,2]
[351197552,1738409437751,-153.0,0.00018464,2]
[351197554,1738409437761,-153.0,0.00018464,2]
[351197556,1738409437770,-153.0,0.00018464,2]
[351197558,1738409437781,-153.0,0.00018464,2]
[351197560,1738409437790,-153.0,0.00018464,2]
[351197562,1738409437799,-153.0,0.00018464,2]
[351197564,1738409437808,-153.0,0.00018464,2]
[351197566,1738409437817,-153.0,0.00018464,2]
[351197568,1738409437827,-153.0,0.00018464,2]
[351197570,1738409437836,-153.0,0.00018464,2]
[351197572,1738409437845,-153.0,0.00018464,2]
[351197573,1738409437855,-153.0,0.00018464,2]
[351197574,1738409437865,-255.0,0.00018464,2]
[351197575,1738409437875,-152.0,0.00018486,2]
[351197576,1738409437889,-152.0,0.00018486,2]
[351197577,1738409437899,-152.0,0.00018486,2]
[351197578,1738409437908,-152.0,0.00018486,2]
[351197579,1738409437918,-152.0,0.00018486,2]
[351197580,1738409437929,-152.0,0.00018486,2]
[351197581,1738409437949,-152.0,0.00018486,2]
[351197582,1738409437963,-152.0,0.00018486,2]
[351197583,1738409437972,-152.0,0.00018486,2]
[351197584,1738409437981,-152.0,0.00018486,2]
[351197585,1738409437991,-152.0,0.00018486,2]
[351197586,1738409438001,-152.0,0.00018486,2]
[351197587,1738409438013,-152.0,0.00018486,2]
[351197588,1738409438023,-152.0,0.00018486,2]
[351197589,1738409438033,-152.0,0.00018486,2]
[351197590,1738409438042,-152.0,0.00018486,2]
[351197591,1738409438052,-152.0,0.00018486,2]
[351197592,1738409438061,-152.0,0.00018486,2]
[351197593,1738409438071,-152.0,0.00018486,2]
[351197594,1738409438080,-152.0,0.00018486,2]
[351197595,1738409438089,-152.0,0.00018486,2]
[351197596,1738409438099,-152.0,0.00018486,2]
[351197597,1738409438108,-152.0,0.00018486,2]
[351197598,1738409438118,-152.0,0.00018486,2]
[351197599,1738409438137,-152.0,0.00018486,2]
[351197600,1738409438147,-152.0,0.00018486,2]
[351197601,1738409438156,-152.0,0.00018486,2]
[351197602,1738409438165,-152.0,0.00018486,2]
[351197603,1738409438175,-152.0,0.00018486,2]
[351197604,1738409438184,-152.0,0.00018486,2]
[351197605,1738409438193,-152.0,0.00018486,2]
[351197606,1738409438202,-152.0,0.00018486,2]
[351197607,1738409438212,-152.0,0.00018486,2]
[351197608,1738409438220,-152.0,0.00018486,2]
[351197609,1738409438230,-152.0,0.00018486,2]
[351197610,1738409438240,-152.0,0.00018486,2]
[351197611,1738409438249,-152.0,0.00018486,2]
[351197612,1738409438258,-152.0,0.00018486,2]
[351197613,1738409438270,-194.0,0.00018486,2]
[351197614,1738409438284,-153.0,0.00018486,2]
[351197615,1738409438293,-153.0,0.00018486,2]
[351197616,1738409438302,-153.0,0.00018486,2]
[351197617,1738409438312,-153.0,0.00018486,2]
[351197618,1738409438322,-153.0,0.00018486,2]
[351197619,1738409438331,-153.0,0.00018486,2]
[351197620,1738409438340,-153.0,0.00018486,2]
[351197622,1738409438351,-153.0,0.00018486,2]
[351197623,1738409438360,-153.0,0.00018486,2]
[351197625,1738409438369,-153.0,0.00018486,2]
[351197626,1738409438378,-153.0,0.00018486,2]
[351197628,1738409438387,-153.0,0.00018486,2]
[351197629,1738409438397,-153.0,0.00018486,2]
[351197630,1738409438406,-153.0,0.00018486,2]
[351197631,1738409438415,-153.0,0.00018486,2]
[351197632,1738409438425,-153.0,0.00018486,2]
[351197633,1738409438434,-153.0,0.00018486,2]
[351197634,1738409438444,-153.0,0.00018486,2]
[351197635,1738409438452,-153.0,0.00018486,2]
[351197636,1738409438462,-153.0,0.00018486,2]
[351197637,1738409438471,-153.0,0.00018486,2]
[351197638,1738409438480,-153.0,0.00018486,2]
[351197639,1738409438489,-153.0,0.00018486,2]
[351197640,1738409438498,-153.0,0.00018486,2]
[351197641,1738409438508,-153.0,0.00018486,2]
[351197642,1738409438517,-153.0,0.00018486,2]
[351197643,1738409438526,-153.0,0.00018486,2]
[351197644,1738409438539,-153.0,0.00018486,2]
[351197645,1738409438548,-153.0,0.00018486,2]
[351197646,1738409438557,-153.0,0.00018486,2]
[351197647,1738409438567,-153.0,0.00018486,2]
[351197648,1738409438576,-153.0,0.00018486,2]
[351197649,1738409438585,-153.0,0.00018486,2]
[351197650,1738409438595,-153.0,0.00018486,2]
[351197651,1738409438604,-153.0,0.00018486,2]
[351197652,1738409438613,-153.0,0.00018486,2]
[351197653,1738409438623,-153.0,0.00018486,2]
[351197654,1738409438632,-153.0,0.00018486,2]
[351197655,1738409438641,-153.0,0.00018486,2]
[351197656,1738409438650,-153.0,0.00018486,2]
[351197657,1738409438659,-153.0,0.00018486,2]
[351197658,1738409438669,-153.0,0.00018486,2]
[351197659,1738409438678,-204.0,0.00018486,2]
[351197660,1738409438688,-249.02,0.00018486,2]
[351197661,1738409438697,-500.0,0.00018492,2]
[351197662,1738409438706,-211.10514106,0.00018492,2]
[351197663,1738409438715,-500.0,0.00018492,2]
[351197664,1738409438724,-399.38103159,0.00018492,2]
[351197665,1738409438733,-347.5,0.00018493,7]
[351197666,1738409438742,-500.0,0.00018493,2]
[351197667,1738409438752,-678.18,0.00018493,2]
[351197668,1738409438762,-500.0,0.00018493,2]
[351197669,1738409438771,-969.44,0.00018493,2]
[351197670,1738409438782,-783.32,0.00018498,2]
[351197671,1738409438791,-151.0,0.00018499,2]
[351197672,1738409438800,-783.32,0.00018499,2]
[351197673,1738409438810,-783.32,0.00018499,2]
[351197674,1738409438819,-783.32,0.00018499,2]
[351197675,1738409438829,-783.32,0.00018499,2]
[351197676,1738409438839,-783.32,0.00018499,2]
[351197677,1738409438848,-783.32,0.00018499,2]
[351197678,1738409438857,-783.32,0.00018499,2]
[351197679,1738409438867,-36663.73564837,0.000185,2]
[351197680,1738409438884,-300.25687982,0.000185,2]
[351197681,1738409438896,-21664.76017884,0.000185,2]
[351197682,1738409439070,-500.0,0.00016438,2]
[351197683,1738409439080,-1101.06569073,0.000185,2]
[351197684,1738409439092,-66637.64173144,0.000185,2]
[351197685,1738409439101,-151.0,0.000185,2]
[351197686,1738409439112,-151.0,0.000185,2]
[351197687,1738409439122,-151.0,0.000185,2]
[351197688,1738409439131,-151.0,0.000185,2]
[351197689,1738409439141,-197.835392,0.000185,2]
[351197690,1738409439151,-151.0,0.000185,2]
[351197691,1738409439160,-154.501608,0.000185,2]
[351197692,1738409439170,-154.501608,0.000185,2]
[351197693,1738409439179,-151.0,0.000185,2]
[351197694,1738409439189,-151.0,0.000185,2]
[351197695,1738409439198,-151.0,0.000185,2]
[351197696,1738409439208,-151.0,0.000185,2]
[351197697,1738409439217,-232.645541,0.000185,2]
[351197698,1738409439227,-151.0,0.000185,2]
[351197699,1738409439236,-500.0,0.00018517,2]
[351197700,1738409439247,-151.11971487,0.00018537,2]
[351197701,1738409439256,-296.26405088,0.0001859,2]
[351197702,1738409439266,-166.21,0.000186,2]
[351197703,1738409439277,-845.94121545,0.000186,2]
[351197704,1738409439287,-6154.64265986,0.000186,2]
[351197705,1738409439297,-337.81,0.0001863,2]
[351197706,1738409439307,-678.18,0.0001863,2]
[351197707,1738409439317,-500.0,0.0001863,2]
[351197708,1738409439326,-969.44,0.0001863,2]
[351197709,1738409439335,-969.0415496,0.00018662,2]
[351197710,1738409439344,-150.0,0.000187,2]
[351197711,1738409439354,-2232.55093352,0.000187,2]
[351197712,1738409439364,-785.3539732,0.00018722,2]
[351197713,1738409439374,-296.26405088,0.00018762,2]
[351197714,1738409439383,-678.18,0.00018767,2]
[351197715,1738409439392,-500.0,0.00018767,2]
[351197716,1738409439401,-969.44,0.00018767,2]
[351197717,1738409439411,-160.0,0.00018767,5]
[351197718,1738409439421,-273.67430114,0.00018773,2]
[351197719,1738409439430,-500.0,0.00018773,2]
[351197720,1738409439440,-501.05937883,0.00018773,2]
[351197721,1738409439450,-574.88593708,0.00018773,2]
[351197722,1738409439459,-500.0,0.00018773,2]
[351197723,1738409439468,-500.0,0.00018773,2]
[351197724,1738409439478,-767.3860199,0.00018787,2]
[351197725,1738409439488,-783.32,0.00018789,2]
[351197726,1738409439498,-4212.45,0.0001879,3]
[351197728,1738409439604,-783.32,0.00018799,2]
[351197730,1738409439614,-783.32,0.00018799,2]
[351197731,1738409439623,-783.32,0.00018799,2]
[351197732,1738409439633,-783.32,0.00018799,2]
[351197733,1738409439643,-783.32,0.00018799,2]
[351197734,1738409439652,-783.32,0.00018799,2]
[351197736,1738409439662,-783.32,0.00018799,2]
[351197738,1738409439671,-783.50279773,0.00018799,2]
[351197739,1738409439681,-16625.47074921,0.00018799,5]
[351197740,1738409439694,-2451.12863605,0.00018799,5]
[351197741,1738409439705,-738.66792424,0.00018799,5]
[351197742,1738409439715,-595.33207427,0.000188,5]
[351197744,1738409439730,-45663.9362226,0.000188,5]
[351197745,1738409439739,-73409.8730876,0.000188,10]
[351197746,1738409439750,-776.7065474,0.000188,10]
[351197747,1738409439762,-543.17434545,0.000188,10]
[351197777,1738409440450,-500.0,0.00016438,2]
[351197778,1738409440460,-500.0,0.00016438,2]
[351197779,1738409440471,-76967.67406248,0.000188,10]
[351197798,1738409443128,-346.525888,0.00016438,2]
[351197799,1738409443185,-158.22812622,0.00016438,2]
[351197800,1738409443194,-53024.52737177,0.000188,10]
[351197863,1738409446163,-409.91453439,0.000188,10]
[351197878,1738409446434,-332207.79706416,0.000188,10]
[351197879,1738409446445,-74504.90137577,0.000188,10]
[351197880,1738409446457,-21638.39458145,0.000188,10]
[351197881,1738409523160,213.0,0.00021191,120]
[351197883,1738409946599,184.735085,0.00013699,2]
[351197884,1738410024492,184.246737,0.00015056,2]
[351197934,1738410190723,221.244251,0.00013973,2]
[351198109,1738410632496,-1383.5612328,0.00015435,2]
[351198111,1738410632506,-729.5003854,0.00015438,2]
[351198113,1738410632518,-325.224513,0.00015472,2]
[351198115,1738410632527,-210.71855361,0.00016338,2]
[351198130,1738410632657,-392.6769866,0.00016338,2]
[351198132,1738410632667,-300.0,0.00016427,2]
[351198134,1738410632679,-287.32821101,0.00016428,2]
[351198136,1738410632689,-152.5,0.00016428,2]
[351198138,1738410632698,-152.5,0.00016428,2]
[351198140,1738410632707,-152.5,0.00016428,2]
[351198142,1738410632717,-152.5,0.00016428,2]
[351198144,1738410632727,-152.5,0.00016428,2]
[351198146,1738410632735,-152.5,0.00016428,2]
[351198148,1738410632744,-839.51433284,0.00016428,2]
[351198150,1738410632755,-500.0,0.00016437,2]
[351198152,1738410632764,-201.21085231,0.00016437,2]
[351198154,1738410632773,-500.0,0.00016437,2]
[351198156,1738410632783,-322.3165075,0.00016437,2]
[351198158,1738410632792,-500.0,0.00016438,2]
[351198160,1738410632801,-501.41662493,0.00016438,2]
[351198162,1738410632810,-504.24523206,0.00016438,2]
[351198164,1738410632819,-500.0,0.00016438,2]
[351198166,1738410632829,-502.42163637,0.00016438,2]
[351198168,1738410632838,-500.0,0.00016438,2]
[351198170,1738410632847,-500.0,0.00016438,2]
[351198172,1738410632857,-503.36946444,0.00016438,2]
[351198174,1738410632866,-502.63095403,0.00016438,2]
[351198176,1738410632875,-500.0,0.00016438,2]
[351198178,1738410632884,-500.0,0.00016438,2]
[351198180,1738410632893,-500.0,0.00016438,2]
[351198182,1738410632902,-520.97238367,0.00016438,2]
[351198184,1738410632912,-502.32749798,0.00016438,2]
[351198186,1738410632921,-500.0,0.00016438,2]
[351198187,1738410632931,-501.94886572,0.00016438,2]
[351198190,1738410632940,-500.0,0.00016438,2]
[351198192,1738410632949,-501.7035594,0.00016438,2]
[351198194,1738410632959,-500.0,0.00016438,2]
[351198195,1738410632968,-500.0,0.00016438,2]
[351198197,1738410632978,-500.0,0.00016438,2]
[351198199,1738410632987,-500.0,0.00016438,2]
[351198201,1738410632996,-367.73682754,0.00016438,2]
[351198204,1738410633007,-500.0,0.00016438,2]
[351198206,1738410633017,-500.0,0.00016438,2]
[351198208,1738410633027,-501.71599731,0.00016438,2]
[351198210,1738410633037,-501.56829494,0.00016438,2]
[351198212,1738410633046,-590.10173873,0.00016438,2]
[351198214,1738410633055,-500.0,0.00016438,2]
[351198216,1738410633066,-501.15689659,0.00016438,2]
[351198218,1738410633075,-636.63430477,0.00016438,2]
[351198220,1738410633085,-502.29311078,0.00016438,2]
[351198222,1738410633100,-530.93937202,0.00016438,2]
[351198225,1738410633117,-500.0,0.00016438,2]
[351198227,1738410633127,-224.10696103,0.00016438,2]
[351198229,1738410633138,-502.3482059,0.00016438,2]
[351198231,1738410633149,-500.0,0.00016438,2]
[351198233,1738410633160,-506.00447112,0.00016438,2]
[351198235,1738410633170,-477.85946273,0.00016438,2]
[351198237,1738410633181,-500.0,0.00016438,2]
[351198239,1738410633191,-500.0,0.00016438,2]
[351198242,1738410633202,-500.0,0.00016438,2]
[351198244,1738410633212,-500.0,0.00016438,2]
[351198246,1738410633223,-500.0,0.00016438,2]
[351198248,1738410633233,-500.0,0.00016438,2]
[351198250,1738410633244,-500.0,0.00016438,2]
[351198252,1738410633254,-502.39670563,0.00016438,2]
[351198254,1738410633264,-500.0,0.00016438,2]
[351198256,1738410633274,-502.19630505,0.00016438,2]
[351198258,1738410633284,-500.0,0.00016438,2]
[351198260,1738410633294,-501.3717117,0.00016438,2]
[351198262,1738410633304,-500.0,0.00016438,2]
[351198264,1738410633315,-501.15220094,0.00016438,2]
[351198266,1738410633325,-506.86842485,0.00016438,2]
[351198269,1738410633335,-504.59319811,0.00016438,2]
[351198271,1738410633344,-500.0,0.00016438,2]
[351198273,1738410633355,-500.0,0.00016438,2]
[351198275,1738410633364,-500.0,0.00016438,2]
[351198277,1738410633374,-500.0,0.00016438,2]
[351198279,1738410633384,-501.57824832,0.00016438,2]
[351198281,1738410633394,-500.0,0.00016438,2]
[351198283,1738410633404,-500.98027932,0.00016438,2]
[351198285,1738410633415,-504.98740706,0.00016438,2]
[351198287,1738410633425,-500.0,0.00016438,2]
[351198289,1738410633434,-503.97641075,0.00016438,2]
[351198291,1738410633444,-500.0,0.00016438,2]
[351198293,1738410633454,-503.58967395,0.00016438,2]
[351198295,1738410633463,-500.0,0.00016438,2]
[351198297,1738410633473,-500.0,0.00016438,2]
[351198299,1738410633482,-506.53357035,0.00016438,2]
[351198301,1738410633492,-500.0,0.00016438,2]
[351198303,1738410633503,-500.0,0.00016438,2]
[351198305,1738410633512,-500.0,0.00016438,2]
[351198307,1738410633523,-501.26315937,0.00016438,2]
[351198309,1738410633532,-500.0,0.00016438,2]
[351198311,1738410633542,-500.0,0.00016438,2]
[351198313,1738410633552,-501.97239853,0.00016438,2]
[351198315,1738410633561,-500.0,0.00016438,2]
[351198317,1738410633572,-500.0,0.00016438,2]
[351198319,1738410633582,-501.41277902,0.00016438,2]
[351198321,1738410633592,-500.0,0.00016438,2]
[351198323,1738410633602,-500.0,0.00016438,2]
[351198325,1738410633612,-500.0,0.00016438,2]
[351198327,1738410633622,-505.93156065,0.00016438,2]
[351198329,1738410633632,-500.0,0.00016438,2]
[351198331,1738410633642,-500.0,0.00016438,2]
[351198333,1738410633652,-502.11131472,0.00016438,2]
[351198335,1738410633662,-502.89392114,0.00016438,2]
[351198337,1738410633672,-500.0,0.00016438,2]
[351198339,1738410633686,-500.0,0.00016438,2]
[351198341,1738410633696,-500.0,0.00016438,2]
[351198343,1738410633706,-485.95503907,0.00016438,2]
[351198345,1738410633715,-500.0,0.00016438,2]
[351198347,1738410633725,-500.0,0.00016438,2]
[351198349,1738410633734,-500.0,0.00016438,2]
[351198351,1738410633744,-500.0,0.00016438,2]
[351198353,1738410633753,-500.0,0.00016438,2]
[351198355,1738410633763,-500.0,0.00016438,2]
[351198357,1738410633774,-500.0,0.00016438,2]
[351198359,1738410633784,-500.0,0.00016438,2]
[351198361,1738410633793,-500.0,0.00016438,2]
[351198363,1738410633803,-500.0,0.00016438,2]
[351198365,1738410633812,-500.0,0.00016438,2]
[351198367,1738410633822,-500.0,0.00016438,2]
[351198369,1738410633831,-500.0,0.00016438,2]
[351198371,1738410633840,-500.0,0.00016438,2]
[351198373,1738410633851,-500.0,0.00016438,2]
[351198375,1738410633860,-500.0,0.00016438,2]
[351198377,1738410633870,-503.28028462,0.00016438,2]
[351198379,1738410633879,-500.0,0.00016438,2]
[351198381,1738410633888,-313.95501091,0.00016438,2]
[351198383,1738410633898,-505.04905034,0.00016438,2]
[351198385,1738410633907,-503.38929507,0.00016438,2]
[351198387,1738410633917,-505.09854308,0.00016438,2]
[351198389,1738410633927,-500.0,0.00016438,2]
[351198391,1738410633936,-500.0,0.00016438,2]
[351198393,1738410633945,-500.0,0.00016438,2]
[351198395,1738410633955,-500.0,0.00016438,2]
[351198397,1738410633964,-500.0,0.00016438,2]
[351198399,1738410633974,-500.0,0.00016438,2]
[351198401,1738410633983,-518.66000485,0.00016438,2]
[351198403,1738410633993,-198.72906467,0.00016438,2]
[351198405,1738410634002,-500.0,0.00016438,2]
[351198407,1738410634011,-502.10007293,0.00016438,2]
[351198409,1738410634022,-500.0,0.00016438,2]
[351198411,1738410634032,-500.0,0.00016438,2]
[351198413,1738410634041,-500.0,0.00016438,2]
[351198415,1738410634051,-500.0,0.00016438,2]
[351198417,1738410634060,-500.0,0.00016438,2]
[351198419,1738410634070,-502.14953178,0.00016438,2]
[351198421,1738410634079,-335.06547506,0.00016438,2]
[351198423,1738410634088,-506.47832471,0.00016438,2]
[351198425,1738410634097,-500.0,0.00016438,2]
[351198427,1738410634107,-500.0,0.00016438,2]
[351198430,1738410634116,-228.86513412,0.00016438,2]
[351198432,1738410634126,-509.33034966,0.00016438,2]
[351198433,1738410634135,-565.51365423,0.00016438,2]
[351198435,1738410634145,-500.0,0.00016438,2]
[351198438,1738410634154,-612.17241693,0.00016438,2]
[351198440,1738410634163,-502.80500871,0.00016438,2]
[351198442,1738410634173,-503.23107592,0.00016438,2]
[351198444,1738410634182,-500.0,0.00016438,2]
[351198446,1738410634191,-500.0,0.00016438,2]
[351198448,1738410634200,-504.80633762,0.00016438,2]
[351198450,1738410634210,-500.0,0.00016438,2]
[351198452,1738410634220,-503.46361273,0.00016438,2]
[351198454,1738410634229,-500.0,0.00016438,2]
[351198456,1738410634238,-506.62777129,0.00016438,2]
[351198458,1738410634247,-489.93980475,0.00016438,2]
[351198460,1738410634257,-502.50655244,0.00016438,2]
[351198462,1738410634267,-504.55401459,0.00016438,2]
[351198464,1738410634276,-515.63745862,0.00016438,2]
[351198466,1738410634286,-500.0,0.00016438,2]
[351198468,1738410634295,-500.0,0.00016438,2]
[351198470,1738410634304,-503.02160043,0.00016438,2]
[351198472,1738410634313,-529.44037452,0.00016438,2]
[351198474,1738410634324,-500.0,0.00016438,2]
[351198476,1738410634333,-500.0,0.00016438,2]
[351198478,1738410634342,-500.0,0.00016438,2]
[351198480,1738410634353,-500.0,0.00016438,2]
[351198482,1738410634363,-500.0,0.00016438,2]
[351198484,1738410634372,-500.0,0.00016438,2]
[351198486,1738410634382,-500.0,0.00016438,2]
[351198488,1738410634393,-538.89293913,0.00016438,2]
[351198490,1738410634402,-500.0,0.00016438,2]
[351198492,1738410634411,-500.0,0.00016438,2]
[351198494,1738410634421,-509.57619342,0.00016438,2]
[351198496,1738410634431,-500.0,0.00016438,2]
[351198498,1738410634441,-509.73284338,0.00016438,2]
[351198500,1738410634451,-500.0,0.00016438,2]
[351198502,1738410634460,-503.3971516,0.00016438,2]
[351198504,1738410634469,-500.0,0.00016438,2]
[351198506,1738410634479,-423.73679617,0.00016438,2]
[351198508,1738410634488,-503.43709158,0.00016438,2]
[351198510,1738410634497,-500.0,0.00016438,2]
[351198512,1738410634507,-500.0,0.00016438,2]
[351198514,1738410634517,-1004.09835109,0.00016438,2]
[351198516,1738410634527,-500.0,0.00016438,2]
[351198518,1738410634537,-500.0,0.00016438,2]
[351198520,1738410634546,-500.0,0.00016438,2]
[351198522,1738410634555,-473.13,0.00016438,2]
[351198524,1738410634565,-500.0,0.00016438,2]
[351198526,1738410634575,-500.0,0.00016438,2]
[351198528,1738410634584,-500.0,0.00016438,2]
[351198530,1738410634594,-500.0,0.00016438,2]
[351198533,1738410634604,-500.0,0.00016438,2]
[351198535,1738410634618,-500.0,0.00016438,2]
[351198537,1738410634631,-500.0,0.00016438,2]
[351198539,1738410634640,-500.0,0.00016438,2]
[351198540,1738410634650,-500.0,0.00016438,2]
[351198541,1738410634660,-591.12472566,0.00016438,2]
[351198542,1738410634669,-500.0,0.00016438,2]
[351198543,1738410634682,-500.0,0.00016438,2]
[351198544,1738410634692,-500.0,0.00016438,2]
[351198545,1738410634701,-500.0,0.00016438,2]
[351198546,1738410634712,-500.0,0.00016438,2]
[351198547,1738410634722,-500.0,0.00016438,2]
[351198548,1738410634731,-500.0,0.00016438,2]
[351198549,1738410634741,-500.0,0.00016438,2]
[351198550,1738410634750,-500.0,0.00016438,2]
[351198551,1738410634760,-551.14033789,0.00016438,2]
[351198552,1738410634770,-500.0,0.00016438,2]
[351198554,1738410634780,-500.0,0.00016438,2]
[351198555,1738410634789,-500.0,0.00016438,2]
[351198557,1738410634799,-500.0,0.00016438,2]
[351198559,1738410634809,-500.0,0.00016438,2]
[351198561,1738410634818,-594.2011352,0.00016438,2]
[351198563,1738410634827,-500.0,0.00016438,2]
[351198565,1738410634836,-500.0,0.00016438,2]
[351198567,1738410634846,-500.0,0.00016438,2]
[351198569,1738410634856,-500.0,0.00016438,2]
[351198571,1738410634865,-500.0,0.00016438,2]
[351198573,1738410634875,-500.0,0.00016438,2]
[351198575,1738410634885,-500.0,0.00016438,2]
[351198577,1738410634894,-500.0,0.00016438,2]
[351198579,1738410634903,-500.0,0.00016438,2]
[351198581,1738410634913,-500.0,0.00016438,2]
[351198583,1738410634923,-144.01968164,0.00016438,2]
[351198594,1738410635036,-355.98031836,0.00016438,2]
[351198595,1738410635046,-163.54218705,0.00016438,2]
[351198618,1738410638283,-336.45781295,0.00016438,2]